[Event "Titled Tuesday Blitz December 20 Early 2022"]
[White "PushingpawnsNYC"]
[Black "frequentblunders"]
[WhiteElo "2375"]
[BlackElo "2156"]
[Result "0-1"]
[Round "11"]
[TimeControl "180+2"]
[Date "2022.12.20"]
[WhiteClock "0:00:02"]
[BlackClock "0:00:05"]

1. d4 {[%clk 0:02:51]}  e6 {[%clk 0:02:55]} 2. Nf3 {[%clk 0:02:48]}  c5 {[%clk 0:02:52]} 3. e3 {[%clk 0:02:44]}  Nf6 {[%clk 0:02:51]} 4. Bd3 {[%clk 0:02:42]}  d5 {[%clk 0:02:47]} 5. b3 {[%clk 0:02:36]}  Nc6 {[%clk 0:02:48]} 6. Bb2 {[%clk 0:02:31]}  cxd4 {[%clk 0:02:46]} 7. exd4 {[%clk 0:02:24]}  Ne4 {[%clk 0:02:45]} 8. O-O {[%clk 0:02:19]}  Bd6 {[%clk 0:02:42]} 9. Nbd2 {[%clk 0:02:16]}  f5 {[%clk 0:02:41]} 10. c4 {[%clk 0:02:04]}  O-O {[%clk 0:02:28]} 11. Ne5 {[%clk 0:01:58]}  Qf6 {[%clk 0:02:12]} 12. f4 {[%clk 0:01:49]}  g5 {[%clk 0:02:03]} 13. Bxe4 {[%clk 0:01:14]}  dxe4 {[%clk 0:01:40]} 14. c5 {[%clk 0:01:00]}  Bxe5 {[%clk 0:01:37]} 15. dxe5 {[%clk 0:00:38]}  Qe7 {[%clk 0:01:33]} 16. Rc1 {[%clk 0:00:31]}  Nb4 {[%clk 0:01:29]} 17. Bd4 {[%clk 0:00:22]}  Nxa2 {[%clk 0:01:22]} 18. Ra1 {[%clk 0:00:19]}  Nb4 {[%clk 0:01:21]} 19. Nc4 {[%clk 0:00:19]}  Bd7 {[%clk 0:01:05]} 20. Nd6 {[%clk 0:00:18]}  Bc6 {[%clk 0:00:56]} 21. Qe2 {[%clk 0:00:17]}  a6 {[%clk 0:00:49]} 22. Qf2 {[%clk 0:00:15]}  g4 {[%clk 0:00:46]} 23. Qg3 {[%clk 0:00:15]}  Nc2 {[%clk 0:00:40]} 24. Rad1 {[%clk 0:00:14]}  Bd5 {[%clk 0:00:36]} 25. h3 {[%clk 0:00:12]}  h5 {[%clk 0:00:35]} 26. hxg4 {[%clk 0:00:12]}  hxg4 {[%clk 0:00:36]} 27. Kf2 {[%clk 0:00:12]}  Kg7 {[%clk 0:00:34]} 28. Rh1 {[%clk 0:00:11]}  Rh8 {[%clk 0:00:32]} 29. Nxf5+ {[%clk 0:00:10]}  exf5 {[%clk 0:00:28]} 30. e6+ {[%clk 0:00:10]}  Nxd4 {[%clk 0:00:28]} 31. Qc3 {[%clk 0:00:09]}  Qf6 {[%clk 0:00:22]} 32. Rxh8 {[%clk 0:00:07]}  Rxh8 {[%clk 0:00:21]} 33. Rxd4 {[%clk 0:00:07]}  Bxe6 {[%clk 0:00:19]} 34. c6 {[%clk 0:00:07]}  bxc6 {[%clk 0:00:19]} 35. Qc5 {[%clk 0:00:08]}  g3+ {[%clk 0:00:17]} 36. Ke3 {[%clk 0:00:06]}  Rh1 {[%clk 0:00:14]} 37. Rd6 {[%clk 0:00:05]}  Re1+ {[%clk 0:00:09]} 38. Kd2 {[%clk 0:00:05]}  Rf1 {[%clk 0:00:08]} 39. Qxc6 {[%clk 0:00:04]}  Rf2+ {[%clk 0:00:08]} 40. Ke3 {[%clk 0:00:04]}  Rxg2 {[%clk 0:00:07]} 41. Rxe6 {[%clk 0:00:03]}  Qf7 {[%clk 0:00:06]} 42. Rd6 {[%clk 0:00:03]}  Qxb3+ {[%clk 0:00:05]} 43. Kd4 {[%clk 0:00:03]}  Rd2+ {[%clk 0:00:05]} 44. Ke5 {[%clk 0:00:04]}  Qb2+ {[%clk 0:00:05]} 45. Kxf5 {[%clk 0:00:03]}  Rxd6 {[%clk 0:00:05]} 46. Qxd6 {[%clk 0:00:03]}  g2 {[%clk 0:00:04]} 47. Qe7+ {[%clk 0:00:03]}  Kg8 {[%clk 0:00:04]} 48. Qe8+ {[%clk 0:00:04]}  Kg7 {[%clk 0:00:04]} 49. Qe7+ {[%clk 0:00:04]}  Kh6 {[%clk 0:00:04]} 50. Qe6+ {[%clk 0:00:02]}  Kh7 {[%clk 0:00:03]} 51. Qf7+ {[%clk 0:00:02]}  Qg7 {[%clk 0:00:04]} 52. Qh5+ {[%clk 0:00:03]}  Kg8 {[%clk 0:00:04]} 53. Qe8+ {[%clk 0:00:02]}  Qf8+ {[%clk 0:00:05]} 54. Qxf8+ {[%clk 0:00:02]}  Kxf8 {[%clk 0:00:05]} 0-1


[Site "https://www.chess.com"]

[Event "Titled Tuesday Blitz December 20 Early 2022"]
[White "Rakesh, Kumar Jena"]
[Black "Sadykov_Ramil"]
[WhiteFideId "5084822"]
[WhiteElo "2303"]
[BlackElo "2546"]
[Result "0-1"]
[Round "11"]
[TimeControl "180+2"]
[Date "2022.12.20"]
[WhiteClock "0:00:54"]
[BlackClock "0:01:35"]

1. Nf3 {[%clk 0:02:57]}  Nf6 {[%clk 0:02:57]} 2. b3 {[%clk 0:02:52]}  g6 {[%clk 0:02:53]} 3. Bb2 {[%clk 0:02:49]}  Bg7 {[%clk 0:02:54]} 4. e3 {[%clk 0:02:49]}  O-O {[%clk 0:02:54]} 5. Be2 {[%clk 0:02:49]}  d6 {[%clk 0:02:52]} 6. O-O {[%clk 0:02:50]}  e5 {[%clk 0:02:52]} 7. c4 {[%clk 0:02:50]}  c6 {[%clk 0:02:45]} 8. Nc3 {[%clk 0:02:49]}  Re8 {[%clk 0:02:45]} 9. d4 {[%clk 0:02:48]}  e4 {[%clk 0:02:45]} 10. Nd2 {[%clk 0:02:48]}  h5 {[%clk 0:02:45]} 11. Qc2 {[%clk 0:02:48]}  Bf5 {[%clk 0:02:45]} 12. Rae1 {[%clk 0:02:43]}  Nbd7 {[%clk 0:02:45]} 13. Ba3 {[%clk 0:02:40]}  Nf8 {[%clk 0:02:45]} 14. d5 {[%clk 0:02:39]}  cxd5 {[%clk 0:02:40]} 15. Nxd5 {[%clk 0:02:35]}  Nxd5 {[%clk 0:02:38]} 16. cxd5 {[%clk 0:02:34]}  Rc8 {[%clk 0:02:39]} 17. Qb1 {[%clk 0:02:32]}  Qa5 {[%clk 0:02:37]} 18. Bc1 {[%clk 0:01:55]}  Qxd5 {[%clk 0:02:36]} 19. Nc4 {[%clk 0:01:55]}  Qe6 {[%clk 0:02:32]} 20. Ba3 {[%clk 0:01:52]}  Red8 {[%clk 0:02:30]} 21. Rd1 {[%clk 0:01:48]}  d5 {[%clk 0:02:30]} 22. Nb2 {[%clk 0:01:28]}  Nd7 {[%clk 0:02:16]} 23. Na4 {[%clk 0:01:28]}  a6 {[%clk 0:02:14]} 24. Bb2 {[%clk 0:01:20]}  b5 {[%clk 0:02:12]} 25. Bxg7 {[%clk 0:01:17]}  Kxg7 {[%clk 0:02:13]} 26. Nb2 {[%clk 0:01:07]}  Ne5 {[%clk 0:02:07]} 27. a4 {[%clk 0:01:07]}  b4 {[%clk 0:01:54]} 28. Bxa6 {[%clk 0:01:03]}  Qxa6 {[%clk 0:01:53]} 29. Qa1 {[%clk 0:00:57]}  Qf6 {[%clk 0:01:50]} 30. a5 {[%clk 0:00:56]}  h4 {[%clk 0:01:50]} 31. h3 {[%clk 0:00:55]}  Rc2 {[%clk 0:01:35]} 32. a6 {[%clk 0:00:54]}  Rxb2 {[%clk 0:01:35]} 0-1


[Site "https://www.chess.com"]

[Event "Titled Tuesday Blitz December 20 Early 2022"]
[White "Salomez, Maxime"]
[Black "Durin, Jean-Pierre"]
[WhiteFideId "652079600"]
[BlackFideId "26026600"]
[WhiteElo "1359"]
[BlackElo "1819"]
[Result "0-1"]
[Round "11"]
[TimeControl "180+2"]
[Date "2022.12.20"]
[WhiteClock "0:00:01"]
[BlackClock "0:01:03"]

1. e4 {[%clk 0:03:00]}  c5 {[%clk 0:03:00]} 2. Nf3 {[%clk 0:03:00]}  Nc6 {[%clk 0:03:00]} 3. Bb5 {[%clk 0:02:59]}  g6 {[%clk 0:03:00]} 4. O-O {[%clk 0:02:58]}  Bg7 {[%clk 0:03:00]} 5. Re1 {[%clk 0:02:59]}  e5 {[%clk 0:03:00]} 6. a3 {[%clk 0:02:56]}  Nge7 {[%clk 0:02:59]} 7. b4 {[%clk 0:02:56]}  b6 {[%clk 0:02:55]} 8. bxc5 {[%clk 0:02:47]}  bxc5 {[%clk 0:02:56]} 9. Nc3 {[%clk 0:02:47]}  O-O {[%clk 0:02:55]} 10. Nd5 {[%clk 0:02:47]}  d6 {[%clk 0:02:55]} 11. d3 {[%clk 0:02:45]}  h6 {[%clk 0:02:54]} 12. Nxe7+ {[%clk 0:02:10]}  Nxe7 {[%clk 0:02:52]} 13. c3 {[%clk 0:02:06]}  Be6 {[%clk 0:02:46]} 14. Rb1 {[%clk 0:01:30]}  Qa5 {[%clk 0:02:38]} 15. Qa4 {[%clk 0:00:44]}  Qxa4 {[%clk 0:02:17]} 16. Bxa4 {[%clk 0:00:44]}  Rab8 {[%clk 0:02:17]} 17. Be3 {[%clk 0:00:43]}  f5 {[%clk 0:02:14]} 18. exf5 {[%clk 0:00:41]}  gxf5 {[%clk 0:02:15]} 19. d4 {[%clk 0:00:39]}  cxd4 {[%clk 0:02:06]} 20. cxd4 {[%clk 0:00:38]}  e4 {[%clk 0:02:07]} 21. Bf4 {[%clk 0:00:32]}  Rxb1 {[%clk 0:01:51]} 22. Rxb1 {[%clk 0:00:32]}  exf3 {[%clk 0:01:47]} 23. Bxd6 {[%clk 0:00:32]}  Rd8 {[%clk 0:01:30]} 24. Bxe7 {[%clk 0:00:30]}  Rxd4 {[%clk 0:01:31]} 25. Rb4 {[%clk 0:00:10]}  fxg2 {[%clk 0:01:03]} 26. Rxd4 {[%clk 0:00:05]}  Bxd4 {[%clk 0:01:04]} 27. Kxg2 {[%clk 0:00:05]}  Kf7 {[%clk 0:01:04]} 28. Bb4 {[%clk 0:00:04]}  Bd5+ {[%clk 0:01:05]} 29. f3 {[%clk 0:00:04]}  Ke6 {[%clk 0:01:04]} 30. Bc2 {[%clk 0:00:03]}  Ke5 {[%clk 0:01:04]} 31. Bf8 {[%clk 0:00:03]}  Be3 {[%clk 0:01:02]} 32. Bg7+ {[%clk 0:00:03]}  Ke6 {[%clk 0:01:02]} 33. Bf8 {[%clk 0:00:01]}  Kf7 {[%clk 0:01:02]} 34. Bb4 {[%clk 0:00:01]}  Kg6 {[%clk 0:01:02]} 35. Bd6 {[%clk 0:00:01]}  Be6 {[%clk 0:01:03]} 0-1


[Site "https://www.chess.com"]

[Event "Titled Tuesday Blitz December 20 Early 2022"]
[White "Sam_ChessMood"]
[Black "Aradhya, Garg"]
[BlackFideId "25006746"]
[WhiteElo "2882"]
[BlackElo "2284"]
[Result "1-0"]
[Round "11"]
[TimeControl "180+2"]
[Date "2022.12.20"]
[WhiteClock "0:00:15"]
[BlackClock "0:00:01"]

1. d4 {[%clk 0:02:59]}  d5 {[%clk 0:03:00]} 2. c4 {[%clk 0:02:59]}  c6 {[%clk 0:03:00]} 3. Nf3 {[%clk 0:02:59]}  Nf6 {[%clk 0:03:00]} 4. Nc3 {[%clk 0:02:59]}  dxc4 {[%clk 0:03:00]} 5. a4 {[%clk 0:02:59]}  Bf5 {[%clk 0:03:00]} 6. e3 {[%clk 0:02:59]}  e6 {[%clk 0:03:00]} 7. Bxc4 {[%clk 0:02:59]}  Bb4 {[%clk 0:03:01]} 8. O-O {[%clk 0:02:59]}  O-O {[%clk 0:03:01]} 9. Qe2 {[%clk 0:02:59]}  Nbd7 {[%clk 0:03:02]} 10. e4 {[%clk 0:02:58]}  Bg4 {[%clk 0:03:02]} 11. Rd1 {[%clk 0:02:52]}  e5 {[%clk 0:02:59]} 12. dxe5 {[%clk 0:02:48]}  Ne8 {[%clk 0:02:56]} 13. Bf4 {[%clk 0:02:33]}  Qe7 {[%clk 0:02:56]} 14. Bg5 {[%clk 0:02:02]}  Qxg5 {[%clk 0:02:41]} 15. Rxd7 {[%clk 0:01:52]}  Bxc3 {[%clk 0:01:46]} 16. bxc3 {[%clk 0:01:44]}  Qh5 {[%clk 0:01:29]} 17. Rxb7 {[%clk 0:01:43]}  Kh8 {[%clk 0:01:27]} 18. h3 {[%clk 0:01:39]}  Bc8 {[%clk 0:01:26]} 19. Re7 {[%clk 0:01:32]}  f5 {[%clk 0:01:26]} 20. exf5 {[%clk 0:01:23]}  Bxf5 {[%clk 0:01:13]} 21. Nd4 {[%clk 0:01:13]}  Qg5 {[%clk 0:01:13]} 22. Nxf5 {[%clk 0:01:03]}  Qxf5 {[%clk 0:01:09]} 23. Rd1 {[%clk 0:01:00]}  a5 {[%clk 0:00:58]} 24. Rdd7 {[%clk 0:00:56]}  Rb8 {[%clk 0:00:58]} 25. Bd3 {[%clk 0:00:54]}  Qg5 {[%clk 0:00:47]} 26. Qe3 {[%clk 0:00:46]}  Qh5 {[%clk 0:00:43]} 27. Kh2 {[%clk 0:00:40]}  Rb2 {[%clk 0:00:40]} 28. Rd8 {[%clk 0:00:35]}  Kg8 {[%clk 0:00:06]} 29. Qg3 {[%clk 0:00:29]}  g5 {[%clk 0:00:03]} 30. Bc4+ {[%clk 0:00:24]}  Kh8 {[%clk 0:00:03]} 31. Bf7 {[%clk 0:00:22]}  Rxf7 {[%clk 0:00:01]} 32. Rexe8+ {[%clk 0:00:21]}  Kg7 {[%clk 0:00:02]} 33. Rg8+ {[%clk 0:00:21]}  Kh6 {[%clk 0:00:03]} 34. Rd6+ {[%clk 0:00:22]}  Qg6 {[%clk 0:00:02]} 35. Rdxg6+ {[%clk 0:00:18]}  hxg6 {[%clk 0:00:03]} 36. e6 {[%clk 0:00:17]}  Re7 {[%clk 0:00:02]} 37. Rh8+ {[%clk 0:00:16]}  Kg7 {[%clk 0:00:01]} 38. Qe5# {[%clk 0:00:15]} 1-0


[Site "https://www.chess.com"]

[Event "Titled Tuesday Blitz December 20 Early 2022"]
[White "Shironin, Daniil Aleks"]
[Black "maurovargas01"]
[WhiteFideId "55812198"]
[WhiteElo "2115"]
[BlackElo "1920"]
[Result "1-0"]
[Round "11"]
[TimeControl "180+2"]
[Date "2022.12.20"]
[WhiteClock "0:01:10"]
[BlackClock "0:00:03"]

1. d4 {[%clk 0:03:00]}  d5 {[%clk 0:01:54]} 2. Nc3 {[%clk 0:02:57]}  Nf6 {[%clk 0:01:53]} 3. Bf4 {[%clk 0:02:58]}  Bf5 {[%clk 0:01:51]} 4. e3 {[%clk 0:02:58]}  Nbd7 {[%clk 0:01:48]} 5. f3 {[%clk 0:02:58]}  e6 {[%clk 0:01:44]} 6. g4 {[%clk 0:02:58]}  Bg6 {[%clk 0:01:44]} 7. h4 {[%clk 0:02:59]}  h5 {[%clk 0:01:43]} 8. g5 {[%clk 0:02:58]}  Ng8 {[%clk 0:01:42]} 9. Bd3 {[%clk 0:02:54]}  Bxd3 {[%clk 0:01:39]} 10. Qxd3 {[%clk 0:02:54]}  g6 {[%clk 0:01:39]} 11. O-O-O {[%clk 0:02:50]}  Bg7 {[%clk 0:01:39]} 12. Nge2 {[%clk 0:02:48]}  Ne7 {[%clk 0:01:38]} 13. e4 {[%clk 0:02:45]}  dxe4 {[%clk 0:01:34]} 14. fxe4 {[%clk 0:02:41]}  O-O {[%clk 0:01:34]} 15. Rhf1 {[%clk 0:02:38]}  c6 {[%clk 0:01:12]} 16. Bd6 {[%clk 0:02:32]}  Re8 {[%clk 0:01:08]} 17. e5 {[%clk 0:02:31]}  Nc8 {[%clk 0:01:07]} 18. Ba3 {[%clk 0:02:29]}  a5 {[%clk 0:01:05]} 19. Ne4 {[%clk 0:02:27]}  b5 {[%clk 0:01:05]} 20. Bd6 {[%clk 0:01:57]}  Nxd6 {[%clk 0:00:57]} 21. Nxd6 {[%clk 0:01:56]}  Rf8 {[%clk 0:00:47]} 22. Nxf7 {[%clk 0:01:36]}  Rxf7 {[%clk 0:00:43]} 23. Qxg6 {[%clk 0:01:36]}  Qe7 {[%clk 0:00:39]} 24. Nf4 {[%clk 0:01:32]}  Rxf4 {[%clk 0:00:21]} 25. Rxf4 {[%clk 0:01:30]}  Rf8 {[%clk 0:00:21]} 26. Rdf1 {[%clk 0:01:22]}  Rxf4 {[%clk 0:00:20]} 27. Rxf4 {[%clk 0:01:21]}  Nb6 {[%clk 0:00:17]} 28. Rf6 {[%clk 0:01:11]}  Nd5 {[%clk 0:00:03]} 29. Rxe6 {[%clk 0:01:10]} 1-0


[Site "https://www.chess.com"]

[Event "Titled Tuesday Blitz December 20 Early 2022"]
[White "Shuvalov, Evgenij"]
[Black "jaldjald"]
[WhiteFideId "4187237"]
[WhiteElo "2038"]
[BlackElo "2386"]
[Result "1-0"]
[Round "11"]
[TimeControl "180+2"]
[Date "2022.12.20"]
[WhiteClock "0:00:37"]
[BlackClock "0:00:12"]

1. d4 {[%clk 0:03:00]}  d5 {[%clk 0:02:59]} 2. c4 {[%clk 0:03:00]}  e6 {[%clk 0:02:59]} 3. Nc3 {[%clk 0:03:00]}  c5 {[%clk 0:03:00]} 4. cxd5 {[%clk 0:02:59]}  exd5 {[%clk 0:03:01]} 5. Nf3 {[%clk 0:02:58]}  Nc6 {[%clk 0:03:01]} 6. Bg5 {[%clk 0:02:56]}  Be7 {[%clk 0:03:00]} 7. Bxe7 {[%clk 0:02:56]}  Ngxe7 {[%clk 0:03:01]} 8. e3 {[%clk 0:02:52]}  c4 {[%clk 0:03:01]} 9. Be2 {[%clk 0:02:47]}  O-O {[%clk 0:03:01]} 10. O-O {[%clk 0:02:47]}  b5 {[%clk 0:03:01]} 11. Nxb5 {[%clk 0:02:46]}  Rb8 {[%clk 0:03:01]} 12. Nc3 {[%clk 0:02:43]}  Rxb2 {[%clk 0:03:00]} 13. Ne5 {[%clk 0:02:36]}  Bf5 {[%clk 0:02:44]} 14. Nxc6 {[%clk 0:02:29]}  Nxc6 {[%clk 0:02:44]} 15. Bf3 {[%clk 0:02:29]}  Ne7 {[%clk 0:02:25]} 16. Qa4 {[%clk 0:02:26]}  a5 {[%clk 0:01:56]} 17. h3 {[%clk 0:02:22]}  h6 {[%clk 0:01:55]} 18. Rfc1 {[%clk 0:02:20]}  Be6 {[%clk 0:01:54]} 19. Qa3 {[%clk 0:02:17]}  Rb4 {[%clk 0:01:49]} 20. Na4 {[%clk 0:02:10]}  Bf5 {[%clk 0:01:43]} 21. Nc5 {[%clk 0:02:08]}  Qb6 {[%clk 0:01:39]} 22. Qc3 {[%clk 0:01:56]}  Rb8 {[%clk 0:01:24]} 23. a3 {[%clk 0:01:52]}  Rb5 {[%clk 0:01:16]} 24. e4 {[%clk 0:01:42]}  dxe4 {[%clk 0:01:15]} 25. Nxe4 {[%clk 0:01:35]}  Rd8 {[%clk 0:00:53]} 26. Nc5 {[%clk 0:01:30]}  Be6 {[%clk 0:00:41]} 27. Nxe6 {[%clk 0:01:24]}  fxe6 {[%clk 0:00:37]} 28. Qxc4 {[%clk 0:01:17]}  Rxd4 {[%clk 0:00:35]} 29. Qe2 {[%clk 0:01:14]}  Rb2 {[%clk 0:00:29]} 30. Qe3 {[%clk 0:01:14]}  Nf5 {[%clk 0:00:23]} 31. Qe5 {[%clk 0:01:04]}  Rdd2 {[%clk 0:00:16]} 32. Qc5 {[%clk 0:00:59]}  Qxc5 {[%clk 0:00:14]} 33. Rxc5 {[%clk 0:01:00]}  Rxf2 {[%clk 0:00:14]} 34. Rxa5 {[%clk 0:01:00]}  Ne3 {[%clk 0:00:14]} 35. Be4 {[%clk 0:00:55]}  Nxg2 {[%clk 0:00:13]} 36. Ra8+ {[%clk 0:00:53]}  Kf7 {[%clk 0:00:13]} 37. Rf1 {[%clk 0:00:52]}  Rxf1+ {[%clk 0:00:13]} 38. Kxf1 {[%clk 0:00:53]}  Ne3+ {[%clk 0:00:14]} 39. Kg1 {[%clk 0:00:53]}  Nd5 {[%clk 0:00:13]} 40. a4 {[%clk 0:00:52]}  Nf4 {[%clk 0:00:13]} 41. h4 {[%clk 0:00:48]}  Nh3+ {[%clk 0:00:13]} 42. Kf1 {[%clk 0:00:47]}  Kf6 {[%clk 0:00:13]} 43. a5 {[%clk 0:00:47]}  Ke5 {[%clk 0:00:14]} 44. Bc6 {[%clk 0:00:45]}  Rf2+ {[%clk 0:00:13]} 45. Ke1 {[%clk 0:00:45]}  Rc2 {[%clk 0:00:13]} 46. Bb7 {[%clk 0:00:43]}  Ng1 {[%clk 0:00:11]} 47. a6 {[%clk 0:00:41]}  Nf3+ {[%clk 0:00:11]} 48. Bxf3 {[%clk 0:00:41]}  Rc1+ {[%clk 0:00:11]} 49. Kd2 {[%clk 0:00:41]}  Ra1 {[%clk 0:00:12]} 50. a7 {[%clk 0:00:37]} 1-0


[Site "https://www.chess.com"]

[Event "Titled Tuesday Blitz December 20 Early 2022"]
[White "Steegersee"]
[Black "talaicito"]
[WhiteElo "2425"]
[BlackElo "2293"]
[Result "0-1"]
[Round "11"]
[TimeControl "180+2"]
[Date "2022.12.20"]
[WhiteClock "0:00:12"]
[BlackClock "0:02:14"]

1. g3 {[%clk 0:02:01]}  e5 {[%clk 0:02:56]} 2. Bg2 {[%clk 0:02:02]}  d6 {[%clk 0:02:56]} 3. d4 {[%clk 0:02:01]}  exd4 {[%clk 0:02:53]} 4. Qxd4 {[%clk 0:02:02]}  Nc6 {[%clk 0:02:52]} 5. Qc3 {[%clk 0:02:02]}  Nf6 {[%clk 0:02:49]} 6. Nf3 {[%clk 0:02:01]}  g6 {[%clk 0:02:48]} 7. Bg5 {[%clk 0:01:59]}  Bg7 {[%clk 0:02:49]} 8. Qd2 {[%clk 0:01:51]}  O-O {[%clk 0:02:41]} 9. Nc3 {[%clk 0:01:49]}  Qe8 {[%clk 0:02:34]} 10. O-O-O {[%clk 0:01:20]}  Ne4 {[%clk 0:02:33]} 11. Nxe4 {[%clk 0:01:18]}  Qxe4 {[%clk 0:02:34]} 12. h3 {[%clk 0:01:12]}  Qa4 {[%clk 0:02:28]} 13. Kb1 {[%clk 0:00:40]}  Bf5 {[%clk 0:02:25]} 14. a3 {[%clk 0:00:21]}  b5 {[%clk 0:02:25]} 15. Ne1 {[%clk 0:00:18]}  b4 {[%clk 0:02:16]} 16. b3 {[%clk 0:00:12]}  Qxb3+ {[%clk 0:02:14]} 0-1


[Site "https://www.chess.com"]

[Event "Titled Tuesday Blitz December 20 Early 2022"]
[White "Sunny_Star"]
[Black "MusicCityMaster"]
[WhiteElo "2241"]
[BlackElo "2329"]
[Result "1-0"]
[Round "11"]
[TimeControl "180+2"]
[Date "2022.12.20"]
[WhiteClock "0:01:31"]
[BlackClock "0:02:13"]

1. e4 {[%clk 0:02:53]}  e6 {[%clk 0:02:59]} 2. d4 {[%clk 0:02:50]}  d5 {[%clk 0:03:00]} 3. Nc3 {[%clk 0:02:49]}  Bb4 {[%clk 0:02:59]} 4. e5 {[%clk 0:02:49]}  c5 {[%clk 0:02:59]} 5. a3 {[%clk 0:02:49]}  Bxc3+ {[%clk 0:03:00]} 6. bxc3 {[%clk 0:02:49]}  Ne7 {[%clk 0:03:00]} 7. Qg4 {[%clk 0:02:36]}  Qc7 {[%clk 0:03:00]} 8. Qxg7 {[%clk 0:02:28]}  Rg8 {[%clk 0:03:00]} 9. Qxh7 {[%clk 0:02:28]}  cxd4 {[%clk 0:03:01]} 10. Ne2 {[%clk 0:02:28]}  Nbc6 {[%clk 0:03:00]} 11. f4 {[%clk 0:02:27]}  dxc3 {[%clk 0:03:00]} 12. Qd3 {[%clk 0:02:27]}  Bd7 {[%clk 0:03:00]} 13. Qxc3 {[%clk 0:02:26]}  O-O-O {[%clk 0:02:55]} 14. Be3 {[%clk 0:02:23]}  Nf5 {[%clk 0:02:50]} 15. Bc5 {[%clk 0:02:22]}  Kb8 {[%clk 0:02:39]} 16. Bf2 {[%clk 0:02:07]}  Ka8 {[%clk 0:02:37]} 17. g3 {[%clk 0:02:04]}  d4 {[%clk 0:02:32]} 18. Qd2 {[%clk 0:02:04]}  Na5 {[%clk 0:02:29]} 19. Nxd4 {[%clk 0:01:57]}  Nxd4 {[%clk 0:02:26]} 20. Qxd4 {[%clk 0:01:52]}  b6 {[%clk 0:02:24]} 21. Bg2+ {[%clk 0:01:34]}  Bc6 {[%clk 0:02:14]} 22. Qc3 {[%clk 0:01:34]}  Qb7 {[%clk 0:02:13]} 23. Bxc6 {[%clk 0:01:32]}  Qxc6 {[%clk 0:02:12]} 24. Qxc6+ {[%clk 0:01:31]}  Nxc6 {[%clk 0:02:13]} 25. O-O {[%clk 0:01:31]} 1-0


[Site "https://www.chess.com"]

[Event "Titled Tuesday Blitz December 20 Early 2022"]
[White "Tarno, Brian"]
[Black "fks_stal_mielec"]
[WhiteFideId "10833820"]
[WhiteElo "2169"]
[BlackElo "2284"]
[Result "1-0"]
[Round "11"]
[TimeControl "180+2"]
[Date "2022.12.20"]
[WhiteClock "0:00:03"]
[BlackClock "0:00:01"]

1. e4 {[%clk 0:03:00]}  c5 {[%clk 0:02:59]} 2. Nf3 {[%clk 0:03:00]}  Nc6 {[%clk 0:02:59]} 3. Bb5 {[%clk 0:02:58]}  g6 {[%clk 0:02:57]} 4. O-O {[%clk 0:02:57]}  Bg7 {[%clk 0:02:57]} 5. c3 {[%clk 0:02:51]}  e5 {[%clk 0:02:53]} 6. d3 {[%clk 0:02:42]}  d6 {[%clk 0:02:50]} 7. h3 {[%clk 0:02:40]}  Ne7 {[%clk 0:02:50]} 8. Nbd2 {[%clk 0:02:39]}  O-O {[%clk 0:02:51]} 9. Re1 {[%clk 0:02:39]}  f5 {[%clk 0:02:50]} 10. exf5 {[%clk 0:02:36]}  Bxf5 {[%clk 0:02:49]} 11. Ne4 {[%clk 0:02:35]}  a6 {[%clk 0:02:44]} 12. Ba4 {[%clk 0:02:30]}  Bxe4 {[%clk 0:02:23]} 13. dxe4 {[%clk 0:02:29]}  Nc8 {[%clk 0:02:20]} 14. Bb3+ {[%clk 0:02:27]}  Kh8 {[%clk 0:02:19]} 15. Ng5 {[%clk 0:02:22]}  Qe7 {[%clk 0:02:16]} 16. Qg4 {[%clk 0:02:15]}  Nb6 {[%clk 0:02:07]} 17. Ne6 {[%clk 0:01:49]}  c4 {[%clk 0:01:35]} 18. Nxf8 {[%clk 0:01:30]}  Rxf8 {[%clk 0:01:30]} 19. Bc2 {[%clk 0:01:22]}  Nd7 {[%clk 0:01:30]} 20. Bg5 {[%clk 0:01:21]}  Qf7 {[%clk 0:01:27]} 21. Be3 {[%clk 0:01:11]}  Nc5 {[%clk 0:01:17]} 22. Rad1 {[%clk 0:01:07]}  h5 {[%clk 0:01:02]} 23. Qg3 {[%clk 0:00:57]}  Qe6 {[%clk 0:00:42]} 24. Bxc5 {[%clk 0:00:40]}  dxc5 {[%clk 0:00:43]} 25. Rd5 {[%clk 0:00:39]}  Bh6 {[%clk 0:00:29]} 26. f3 {[%clk 0:00:29]}  Bf4 {[%clk 0:00:24]} 27. Qf2 {[%clk 0:00:27]}  b6 {[%clk 0:00:19]} 28. Red1 {[%clk 0:00:26]}  g5 {[%clk 0:00:13]} 29. Rd6 {[%clk 0:00:25]}  Qe8 {[%clk 0:00:13]} 30. Rh6+ {[%clk 0:00:20]}  Kg7 {[%clk 0:00:13]} 31. Rdd6 {[%clk 0:00:20]}  Ne7 {[%clk 0:00:13]} 32. Rde6 {[%clk 0:00:08]}  g4 {[%clk 0:00:11]} 33. hxg4 {[%clk 0:00:08]}  Bxh6 {[%clk 0:00:11]} 34. gxh5 {[%clk 0:00:06]}  Qf7 {[%clk 0:00:08]} 35. Qg3+ {[%clk 0:00:06]}  Kh7 {[%clk 0:00:08]} 36. Qxe5 {[%clk 0:00:03]}  Be3+ {[%clk 0:00:04]} 37. Kf1 {[%clk 0:00:03]}  Ng8 {[%clk 0:00:01]} 38. Qd6 {[%clk 0:00:03]} 1-0


[Site "https://www.chess.com"]